[Event "*** Qualifier 1: Titled Tuesday 3|2 Blitz"]
[Site "Chess.com"]
[Date "2017.04.04"]
[Round "8"]
[White "nihalsarin"]
[Black "Usurpov"]
[Result "0-1"]
[WhiteElo "2494"]
[BlackElo "2312"]
[TimeControl "180+2"]
[EndTime "14:54:54 PDT"]
[Termination "Usurpov won by checkmate"]

1. Nf3 {[%clk 0:03:02]} 1... Nf6 {[%clk 0:02:59.6]} 2. g3 {[%clk 0:03:03.4]}
2... g6 {[%clk 0:02:58.1]} 3. Bg2 {[%clk 0:03:05]} 3... Bg7 {[%clk 0:02:57.3]}
4. O-O {[%clk 0:03:06.7]} 4... O-O {[%clk 0:02:55.4]} 5. b3 {[%clk 0:03:08.1]}
5... d5 {[%clk 0:02:50.1]} 6. Bb2 {[%clk 0:03:09]} 6... c6 {[%clk 0:02:46.3]} 7.
c4 {[%clk 0:03:09.2]} 7... Bg4 {[%clk 0:02:42.8]} 8. d3 {[%clk 0:03:03.1]} 8...
Bxf3 {[%clk 0:02:41]} 9. Bxf3 {[%clk 0:03:03.9]} 9... e6 {[%clk 0:02:37.7]} 10.
Nd2 {[%clk 0:03:04.1]} 10... a5 {[%clk 0:02:37.2]} 11. a3 {[%clk 0:03:04]} 11...
Ne8 {[%clk 0:02:33]} 12. Bxg7 {[%clk 0:03:02.7]} 12... Nxg7 {[%clk 0:02:34.3]}
13. b4 {[%clk 0:03:03.8]} 13... axb4 {[%clk 0:02:33]} 14. axb4 {[%clk
0:03:04.2]} 14... Nd7 {[%clk 0:02:32.7]} 15. Qb3 {[%clk 0:03:00.1]} 15... Qe7
{[%clk 0:02:20.6]} 16. Bg2 {[%clk 0:02:57.2]} 16... Nf5 {[%clk 0:02:19.3]} 17.
e3 {[%clk 0:02:53.3]} 17... Nd6 {[%clk 0:02:18.2]} 18. Ra2 {[%clk 0:02:44.7]}
18... Rxa2 {[%clk 0:02:06.6]} 19. Qxa2 {[%clk 0:02:44.6]} 19... Ne5 {[%clk
0:01:53.2]} 20. cxd5 {[%clk 0:02:20.3]} 20... cxd5 {[%clk 0:01:45.5]} 21. Qb3
{[%clk 0:02:09.3]} 21... Rc8 {[%clk 0:01:44.1]} 22. Nf3 {[%clk 0:02:03]} 22...
Nxf3+ {[%clk 0:01:39.3]} 23. Bxf3 {[%clk 0:02:04.9]} 23... Qc7 {[%clk
0:01:36.7]} 24. Kg2 {[%clk 0:01:59.4]} 24... Qc3 {[%clk 0:01:33.7]} 25. Qa4
{[%clk 0:01:32.3]} 25... Qxd3 {[%clk 0:01:14.2]} 26. Qd7 {[%clk 0:01:31.1]}
26... Qa6 {[%clk 0:01:11.4]} 27. b5 {[%clk 0:01:07.5]} 27... Qb6 {[%clk
0:01:12]} 28. Ra1 {[%clk 0:01:07.7]} 28... Qc7 {[%clk 0:00:45.3]} 29. Qxc7
{[%clk 0:01:01.1]} 29... Rxc7 {[%clk 0:00:47.2]} 30. Be2 {[%clk 0:01:00]} 30...
Kf8 {[%clk 0:00:43]} 31. Ra8+ {[%clk 0:00:53.5]} 31... Ke7 {[%clk 0:00:43.6]}
32. g4 {[%clk 0:00:49.8]} 32... Rc2 {[%clk 0:00:41.6]} 33. Bf3 {[%clk 0:00:49]}
33... Nxb5 {[%clk 0:00:39.9]} 34. Rh8 {[%clk 0:00:49.2]} 34... Nd6 {[%clk
0:00:27.4]} 35. Rxh7 {[%clk 0:00:50.3]} 35... b5 {[%clk 0:00:27.4]} 36. h4
{[%clk 0:00:31.4]} 36... b4 {[%clk 0:00:21.9]} 37. Bd1 {[%clk 0:00:32.5]} 37...
Rd2 {[%clk 0:00:19.8]} 38. Ba4 {[%clk 0:00:28.7]} 38... Ne4 {[%clk 0:00:19.8]}
39. h5 {[%clk 0:00:29.9]} 39... gxh5 {[%clk 0:00:16.2]} 40. gxh5 {[%clk
0:00:30.1]} 40... Rxf2+ {[%clk 0:00:17.2]} 41. Kg1 {[%clk 0:00:31.5]} 41... Rf5
{[%clk 0:00:16.7]} 42. h6 {[%clk 0:00:30.4]} 42... Rg5+ {[%clk 0:00:17.8]} 43.
Kf1 {[%clk 0:00:31]} 43... Nf6 {[%clk 0:00:18.5]} 44. Rh8 {[%clk 0:00:31]} 44...
Rh5 {[%clk 0:00:19.7]} 45. Ke2 {[%clk 0:00:29.4]} 45... Ng4 {[%clk 0:00:19.8]}
46. h7 {[%clk 0:00:28]} 46... Nf6 {[%clk 0:00:19.9]} 47. Bc2 {[%clk 0:00:29]}
47... Rh2+ {[%clk 0:00:19.7]} 48. Kd1 {[%clk 0:00:29.2]} 48... b3 {[%clk
0:00:19.9]} 49. Bb1 {[%clk 0:00:28.6]} 49... b2 {[%clk 0:00:20.6]} 50. Ke1
{[%clk 0:00:25.6]} 50... Ne4 {[%clk 0:00:21.4]} 51. Kf1 {[%clk 0:00:20.6]} 51...
Kf6 {[%clk 0:00:22.2]} 52. Kg1 {[%clk 0:00:21.7]} 52... Rh6 {[%clk 0:00:22.9]}
53. Kg2 {[%clk 0:00:22.7]} 53... Nc3 {[%clk 0:00:19.3]} 54. Rb8 {[%clk
0:00:20.5]} 54... Nxb1 {[%clk 0:00:19.8]} 55. Rxb2 {[%clk 0:00:20.3]} 55... Nc3
{[%clk 0:00:20.2]} 56. Rf2+ {[%clk 0:00:21.4]} 56... Ke7 {[%clk 0:00:21.2]} 57.
Kf3 {[%clk 0:00:23.1]} 57... Rxh7 {[%clk 0:00:21.5]} 58. Rc2 {[%clk 0:00:23.6]}
58... Ne4 {[%clk 0:00:22.8]} 59. Rc7+ {[%clk 0:00:24.9]} 59... Kf6 {[%clk
0:00:24.5]} 60. Ra7 {[%clk 0:00:26.1]} 60... Rh3+ {[%clk 0:00:25.6]} 61. Kf4
{[%clk 0:00:27]} 61... Rg3 {[%clk 0:00:25.9]} 62. Ra6 {[%clk 0:00:25.2]} 62...
Rg1 {[%clk 0:00:26.5]} 63. Kf3 {[%clk 0:00:25.6]} 63... Rf1+ {[%clk 0:00:27.5]}
64. Kg4 {[%clk 0:00:24.5]} 64... Ke5 {[%clk 0:00:27.4]} 65. Ra7 {[%clk
0:00:25.1]} 65... f5+ {[%clk 0:00:28.6]} 66. Kh5 {[%clk 0:00:24.8]} 66... Rf3
{[%clk 0:00:30.1]} 67. Ra3 {[%clk 0:00:24.4]} 67... Nf2 {[%clk 0:00:29.8]} 68.
Kg6 {[%clk 0:00:23.8]} 68... Ne4 {[%clk 0:00:30.9]} 69. Kf7 {[%clk 0:00:23.9]}
69... Nd6+ {[%clk 0:00:31.7]} 70. Ke7 {[%clk 0:00:24.6]} 70... Nc4 {[%clk
0:00:33.2]} 71. Ra6 {[%clk 0:00:24.7]} 71... Rxe3 {[%clk 0:00:32.1]} 72. Kd7
{[%clk 0:00:25.3]} 72... Kd4 {[%clk 0:00:32.6]} 73. Ra1 {[%clk 0:00:24.6]} 73...
f4 {[%clk 0:00:33.8]} 74. Rd1+ {[%clk 0:00:26.3]} 74... Ke4 {[%clk 0:00:32.2]}
75. Kxe6 {[%clk 0:00:26.3]} 75... f3 {[%clk 0:00:32.8]} 76. Rxd5 {[%clk
0:00:27.6]} 76... f2 {[%clk 0:00:31.4]} 77. Rf5 {[%clk 0:00:28.9]} 77... Rf3
{[%clk 0:00:32.3]} 78. Rc5 {[%clk 0:00:27]} 78... f1=Q {[%clk 0:00:29.1]} 79.
Rd5 {[%clk 0:00:26.2]} 79... Rf6+ {[%clk 0:00:29.9]} 80. Ke7 {[%clk 0:00:27.6]}
80... Kxd5 {[%clk 0:00:30.8]} 81. Ke8 {[%clk 0:00:28.3]} 81... Qe2+ {[%clk
0:00:31.7]} 82. Kd8 {[%clk 0:00:29.6]} 82... Rf7 {[%clk 0:00:30.9]} 83. Kc8
{[%clk 0:00:30.3]} 83... Qe8# {[%clk 0:00:32.5]} 0-1

[Event "*** Qualifier 1: Titled Tuesday 3|2 Blitz"]
[Site "Chess.com"]
[Date "2017.04.04"]
[Round "8"]
[White "daro94"]
[Black "iturrizaga"]
[Result "1/2-1/2"]
[WhiteElo "2707"]
[BlackElo "2659"]
[TimeControl "180+2"]
[EndTime "14:55:07 PDT"]
[Termination "Game drawn by agreement"]

1. d4 {[%clk 0:03:02]} 1... Nf6 {[%clk 0:03:00.5]} 2. Bg5 {[%clk 0:03:03.3]}
2... d5 {[%clk 0:03:00.9]} 3. e3 {[%clk 0:03:03.8]} 3... Nbd7 {[%clk 0:02:57.8]}
4. Nd2 {[%clk 0:03:02.1]} 4... g6 {[%clk 0:02:59.2]} 5. Ngf3 {[%clk 0:02:59.9]}
5... Bg7 {[%clk 0:03:00.5]} 6. Be2 {[%clk 0:03:00.9]} 6... O-O {[%clk
0:03:01.6]} 7. O-O {[%clk 0:03:02.2]} 7... b6 {[%clk 0:03:00.6]} 8. a4 {[%clk
0:03:02.9]} 8... a5 {[%clk 0:02:59.8]} 9. c3 {[%clk 0:03:04.4]} 9... Bb7 {[%clk
0:03:00.9]} 10. Bh4 {[%clk 0:03:03.1]} 10... Re8 {[%clk 0:02:55.8]} 11. b4
{[%clk 0:02:53]} 11... e5 {[%clk 0:02:54.9]} 12. Nb3 {[%clk 0:02:49.4]} 12...
axb4 {[%clk 0:02:54.2]} 13. cxb4 {[%clk 0:02:50.4]} 13... Qe7 {[%clk 0:02:40.5]}
14. b5 {[%clk 0:02:46.2]} 14... Qb4 {[%clk 0:02:29.6]} 15. dxe5 {[%clk
0:02:21.5]} 15... Ne4 {[%clk 0:01:53.7]} 16. Nbd4 {[%clk 0:02:19.8]} 16... Nxe5
{[%clk 0:01:52.9]} 17. Rc1 {[%clk 0:01:34.4]} 17... Nc3 {[%clk 0:01:49.5]} 18.
Qc2 {[%clk 0:01:22.9]} 18... Nxe2+ {[%clk 0:01:47.9]} 19. Qxe2 {[%clk
0:01:23.9]} 19... Nc4 {[%clk 0:01:44.8]} 20. Bg3 {[%clk 0:01:16.4]} 20... Re7
{[%clk 0:01:35]} 21. Rfd1 {[%clk 0:01:12.6]} 21... Qxa4 {[%clk 0:01:26.8]} 22.
h4 {[%clk 0:01:09]} 22... h5 {[%clk 0:01:22.1]} 23. Qf1 {[%clk 0:01:00.7]} 23...
Qb4 {[%clk 0:01:10.8]} 24. Ra1 {[%clk 0:00:59.9]} 24... Ree8 {[%clk 0:00:14.5]}
25. Bxc7 {[%clk 0:00:45.4]} 25... Qc5 {[%clk 0:00:13.9]} 26. Bf4 {[%clk
0:00:43.8]} 26... Bf6 {[%clk 0:00:14.1]} 27. Bg5 {[%clk 0:00:42.8]} 27... Bg7
{[%clk 0:00:14.4]} 28. Bf4 {[%clk 0:00:44.4]} 28... Bf6 {[%clk 0:00:15.1]} 29.
Bg5 {[%clk 0:00:45.7]} 29... Bg7 {[%clk 0:00:15.2]} 30. Rxa8 {[%clk 0:00:44.6]}
30... Rxa8 {[%clk 0:00:16]} 31. Ra1 {[%clk 0:00:46.5]} 31... Ra5 {[%clk
0:00:10.3]} 32. Qc1 {[%clk 0:00:40.4]} 32... Rxa1 {[%clk 0:00:11]} 33. Qxa1
{[%clk 0:00:41.6]} 33... Qxb5 {[%clk 0:00:12.4]} 34. Qa7 {[%clk 0:00:27.9]}
34... Qd7 {[%clk 0:00:12.4]} 35. Bf4 {[%clk 0:00:23.1]} 35... Bf6 {[%clk
0:00:09.4]} 36. Bg5 {[%clk 0:00:23.5]} 36... Bg7 {[%clk 0:00:09.8]} 37. Bf4
{[%clk 0:00:25.1]} 37... f6 {[%clk 0:00:10.3]} 38. Qb8+ {[%clk 0:00:24.3]} 38...
Qc8 {[%clk 0:00:11.3]} 39. Qa7 {[%clk 0:00:25.2]} 39... Bf8 {[%clk 0:00:11.5]}
40. Nb5 {[%clk 0:00:23]} 40... Bc5 {[%clk 0:00:11]} 41. Nfd4 {[%clk 0:00:23.6]}
41... Qa8 {[%clk 0:00:09.8]} 42. Qxa8+ {[%clk 0:00:20.5]} 42... Bxa8 {[%clk
0:00:11.7]} 43. Ne6 {[%clk 0:00:22]} 43... Bc6 {[%clk 0:00:11]} 44. Nxc5 {[%clk
0:00:20.5]} 44... bxc5 {[%clk 0:00:12.1]} 45. Nd6 {[%clk 0:00:20.6]} 45... Nb6
{[%clk 0:00:06]} 46. f3 {[%clk 0:00:18.3]} 46... c4 {[%clk 0:00:05.6]} 47. Kf2
{[%clk 0:00:17.9]} 47... Nd7 {[%clk 0:00:06.5]} 48. Nc8 {[%clk 0:00:16.9]} 48...
Kf7 {[%clk 0:00:06.9]} 49. Ke2 {[%clk 0:00:16.8]} 49... Ke6 {[%clk 0:00:08]} 50.
Kd2 {[%clk 0:00:17.7]} 50... Ba4 {[%clk 0:00:08.1]} 51. Kc3 {[%clk 0:00:17.7]}
51... Bd1 {[%clk 0:00:09.1]} 52. Nd6 {[%clk 0:00:16.8]} 52... Be2 {[%clk
0:00:10]} 53. Nb5 {[%clk 0:00:18.1]} 53... Bf1 {[%clk 0:00:10.9]} 54. g3 {[%clk
0:00:18]} 54... Ne5 {[%clk 0:00:10.8]} 55. Nd4+ {[%clk 0:00:18.9]} 55... Kd7
{[%clk 0:00:11.4]} 56. Kd2 {[%clk 0:00:19.4]} 56... Bg2 {[%clk 0:00:11.4]} 57.
Ke2 {[%clk 0:00:20.4]} 57... Bh1 {[%clk 0:00:11.7]} 58. Bh6 {[%clk 0:00:19.6]}
58... c3 {[%clk 0:00:10.9]} 59. Bf8 {[%clk 0:00:17]} 59... Nc4 {[%clk
0:00:09.8]} 60. Bb4 {[%clk 0:00:16.2]} 60... Bg2 {[%clk 0:00:06.6]} 61. Bxc3
{[%clk 0:00:16.8]} 61... Bh3 {[%clk 0:00:08.3]} 62. Kf2 {[%clk 0:00:17.7]} 62...
Be6 {[%clk 0:00:08.9]} 63. Ne2 {[%clk 0:00:17.5]} 63... Ke7 {[%clk 0:00:09.5]}
64. Nf4 {[%clk 0:00:18.9]} 64... Kf7 {[%clk 0:00:10.9]} 65. Bd4 {[%clk
0:00:20.4]} 65... Nd6 {[%clk 0:00:12]} 66. Nd3 {[%clk 0:00:21.3]} 66... Nf5
{[%clk 0:00:13.6]} 67. Bb2 {[%clk 0:00:21.6]} 67... Nd6 {[%clk 0:00:14.9]} 68.
Nc5 {[%clk 0:00:22.7]} 68... Nc4 {[%clk 0:00:16]} 69. Bd4 {[%clk 0:00:23.6]}
69... Nd6 {[%clk 0:00:17.3]} 70. Na4 {[%clk 0:00:23.9]} 70... Nf5 {[%clk
0:00:16.1]} 71. Bb2 {[%clk 0:00:24.3]} 71... Nd6 {[%clk 0:00:17.2]} 72. Nc5
{[%clk 0:00:25.3]} 72... Nc4 {[%clk 0:00:18.3]} 73. Bc3 {[%clk 0:00:26.8]} 73...
Nd6 {[%clk 0:00:19.5]} 74. Nd3 {[%clk 0:00:27.3]} 74... Bf5 {[%clk 0:00:20.1]}
75. Nf4 {[%clk 0:00:28.1]} 75... Be6 {[%clk 0:00:21.4]} 76. Ba1 {[%clk
0:00:28.2]} 76... Nf5 {[%clk 0:00:22.3]} 77. Ng2 {[%clk 0:00:27.1]} 77... g5
{[%clk 0:00:22.1]} 78. Bb2 {[%clk 0:00:20.4]} 78... Bd7 {[%clk 0:00:22.7]} 79.
Bc3 {[%clk 0:00:20.9]} 79... Kg6 {[%clk 0:00:23.8]} 80. Bb2 {[%clk 0:00:22]}
80... Bc8 {[%clk 0:00:23.6]} 81. Bc3 {[%clk 0:00:18.8]} 1/2-1/2

[Event "*** Qualifier 1: Titled Tuesday 3|2 Blitz"]
[Site "Chess.com"]
[Date "2017.04.04"]
[Round "8"]
[White "Sebastian"]
[Black "AkshatChandra"]
[Result "0-1"]
[WhiteElo "2613"]
[BlackElo "2645"]
[TimeControl "180+2"]
[EndTime "14:58:22 PDT"]
[Termination "AkshatChandra won by resignation"]

1. e4 {[%clk 0:03:02]} 1... e6 {[%clk 0:03:01.2]} 2. d4 {[%clk 0:03:03.3]} 2...
d5 {[%clk 0:03:02.9]} 3. Nc3 {[%clk 0:03:05]} 3... Nf6 {[%clk 0:03:03.8]} 4. e5
{[%clk 0:03:06.7]} 4... Nfd7 {[%clk 0:03:04.4]} 5. f4 {[%clk 0:03:08.4]} 5... c5
{[%clk 0:03:05.8]} 6. Nf3 {[%clk 0:03:10.1]} 6... Nc6 {[%clk 0:03:07.2]} 7. Be3
{[%clk 0:03:11.3]} 7... Be7 {[%clk 0:03:08.4]} 8. Qd2 {[%clk 0:03:09]} 8... b6
{[%clk 0:03:09.7]} 9. Nd1 {[%clk 0:03:05.2]} 9... cxd4 {[%clk 0:03:09.6]} 10.
Nxd4 {[%clk 0:03:06]} 10... Nxd4 {[%clk 0:03:11.2]} 11. Bxd4 {[%clk 0:03:07.2]}
11... Nb8 {[%clk 0:03:12.8]} 12. Be2 {[%clk 0:02:56.3]} 12... O-O {[%clk
0:03:08.6]} 13. O-O {[%clk 0:02:57.3]} 13... Nc6 {[%clk 0:03:08.8]} 14. c3
{[%clk 0:02:59]} 14... Nxd4 {[%clk 0:02:52.2]} 15. cxd4 {[%clk 0:03:00.9]} 15...
Bd7 {[%clk 0:02:48.4]} 16. Ne3 {[%clk 0:02:59.8]} 16... g6 {[%clk 0:02:45.3]}
17. Rf3 {[%clk 0:02:52.1]} 17... Rc8 {[%clk 0:02:36.5]} 18. Rh3 {[%clk
0:02:51.6]} 18... h5 {[%clk 0:02:37.4]} 19. g4 {[%clk 0:02:04]} 19... h4 {[%clk
0:02:15.8]} 20. g5 {[%clk 0:02:04.2]} 20... Kg7 {[%clk 0:02:11.9]} 21. Rxh4
{[%clk 0:01:55.9]} 21... Rh8 {[%clk 0:02:08]} 22. Rxh8 {[%clk 0:01:51]} 22...
Qxh8 {[%clk 0:02:09.9]} 23. Kg2 {[%clk 0:01:49]} 23... Qh4 {[%clk 0:02:06.8]}
24. Bg4 {[%clk 0:01:49.4]} 24... Bb5 {[%clk 0:01:41]} 25. h3 {[%clk 0:01:45]}
25... a5 {[%clk 0:01:39.3]} 26. Qf2 {[%clk 0:01:26.8]} 26... Qxf2+ {[%clk
0:01:25.8]} 27. Kxf2 {[%clk 0:01:27.5]} 27... a4 {[%clk 0:01:26.5]} 28. Be2
{[%clk 0:01:23.5]} 28... Bxe2 {[%clk 0:01:20.7]} 29. Kxe2 {[%clk 0:01:24.1]}
29... a3 {[%clk 0:01:22]} 30. Rb1 {[%clk 0:01:17.5]} 30... Rh8 {[%clk
0:01:17.2]} 31. bxa3 {[%clk 0:01:04.8]} 31... Rxh3 {[%clk 0:01:18.4]} 32. Rxb6
{[%clk 0:01:05.4]} 32... Rh2+ {[%clk 0:01:10.2]} 33. Kf3 {[%clk 0:01:06.3]}
33... Rxa2 {[%clk 0:01:06.5]} 34. Rb7 {[%clk 0:01:06.5]} 34... Kf8 {[%clk
0:01:03.8]} 35. Rb8+ {[%clk 0:01:00.8]} 35... Kg7 {[%clk 0:01:04.7]} 36. Re8
{[%clk 0:01:00.4]} 36... Bf8 {[%clk 0:00:58.2]} 37. Ng4 {[%clk 0:00:45.4]} 37...
Rxa3+ {[%clk 0:00:57]} 38. Ke2 {[%clk 0:00:46.6]} 38... Ra2+ {[%clk 0:00:54.8]}
39. Ke3 {[%clk 0:00:43.4]} 39... Ra3+ {[%clk 0:00:54]} 40. Ke2 {[%clk
0:00:43.9]} 40... Ra2+ {[%clk 0:00:54]} 41. Kf3 {[%clk 0:00:42.2]} 41... Ra3+
{[%clk 0:00:53.8]} 42. Kf2 {[%clk 0:00:43.3]} 42... Rd3 {[%clk 0:00:52.2]} 43.
Nf6 {[%clk 0:00:39.6]} 43... Rxd4 {[%clk 0:00:53.2]} 44. Kf3 {[%clk 0:00:41]}
44... Ra4 {[%clk 0:00:47.9]} 45. Rd8 {[%clk 0:00:40.2]} 45... Ra3+ {[%clk
0:00:43.4]} 46. Kg4 {[%clk 0:00:41.1]} 46... Ra1 {[%clk 0:00:40.7]} 47. Ne8+
{[%clk 0:00:41.5]} 47... Kg8 {[%clk 0:00:40]} 48. Nf6+ {[%clk 0:00:36.6]} 48...
Kg7 {[%clk 0:00:40.6]} 49. Rd7 {[%clk 0:00:38.3]} 49... Ra8 {[%clk 0:00:35.3]}
50. Kf3 {[%clk 0:00:39.2]} 50... Ra3+ {[%clk 0:00:29.6]} 51. Ke2 {[%clk
0:00:39.6]} 51... Ra8 {[%clk 0:00:31.5]} 52. Ng4 {[%clk 0:00:38.7]} 52... Ba3
{[%clk 0:00:24.4]} 53. Nh6 {[%clk 0:00:36.2]} 53... Rf8 {[%clk 0:00:25.9]} 54.
Kf3 {[%clk 0:00:37.2]} 54... Bc1 {[%clk 0:00:26.6]} 55. Kg4 {[%clk 0:00:38.5]}
55... Bd2 {[%clk 0:00:26.2]} 56. Kf3 {[%clk 0:00:39.6]} 56... Bc1 {[%clk
0:00:27.5]} 57. Rc7 {[%clk 0:00:39.8]} 57... Bd2 {[%clk 0:00:27.7]} 58. Rd7
{[%clk 0:00:38.9]} 58... Bc1 {[%clk 0:00:28.4]} 59. Kg4 {[%clk 0:00:39.7]} 59...
Be3 {[%clk 0:00:29.1]} 60. Kg3 {[%clk 0:00:40.7]} 60... Bc1 {[%clk 0:00:24.9]}
61. Kf3 {[%clk 0:00:41.8]} 61... Bd2 {[%clk 0:00:26.1]} 62. Ng4 {[%clk
0:00:42.2]} 62... Ra8 {[%clk 0:00:23]} 63. Nh6 {[%clk 0:00:43]} 63... Rf8 {[%clk
0:00:23.8]} 64. Rc7 {[%clk 0:00:44.3]} 64... Ba5 {[%clk 0:00:24.2]} 65. Rb7
{[%clk 0:00:44.5]} 65... Bd2 {[%clk 0:00:24.6]} 66. Kg3 {[%clk 0:00:44.6]} 66...
Be3 {[%clk 0:00:25.3]} 67. Ng4 {[%clk 0:00:45]} 67... Bc1 {[%clk 0:00:22.2]} 68.
Kf3 {[%clk 0:00:46.2]} 68... Ra8 {[%clk 0:00:20.5]} 69. Nh6 {[%clk 0:00:45.5]}
69... Rf8 {[%clk 0:00:20.4]} 70. Ra7 {[%clk 0:00:45.4]} 70... Bd2 {[%clk
0:00:20.7]} 71. Ra2 {[%clk 0:00:45]} 71... Bc1 {[%clk 0:00:21.1]} 72. Rc2 {[%clk
0:00:45.4]} 72... Ba3 {[%clk 0:00:22.3]} 73. Rc7 {[%clk 0:00:46.5]} 73... Bb4
{[%clk 0:00:21.6]} 74. Ke3 {[%clk 0:00:47.7]} 74... Ba5 {[%clk 0:00:21.5]} 75.
Rb7 {[%clk 0:00:49.1]} 75... Bc3 {[%clk 0:00:21.6]} 76. Kd3 {[%clk 0:00:50]}
76... Be1 {[%clk 0:00:18.8]} 77. Ke2 {[%clk 0:00:50.8]} 77... Bc3 {[%clk
0:00:19.6]} 78. Ke3 {[%clk 0:00:51.5]} 78... Be1 {[%clk 0:00:19.5]} 79. Kd3
{[%clk 0:00:51.3]} 79... Ba5 {[%clk 0:00:19.6]} 80. Ra7 {[%clk 0:00:49]} 80...
Bb6 {[%clk 0:00:19.9]} 81. Rb7 {[%clk 0:00:49.1]} 81... Ba5 {[%clk 0:00:20.6]}
82. Ke3 {[%clk 0:00:50.5]} 82... Bc3 {[%clk 0:00:21.3]} 83. Kf3 {[%clk
0:00:51.3]} 83... Bd2 {[%clk 0:00:22.4]} 84. Kg3 {[%clk 0:00:51.4]} 84... Be3
{[%clk 0:00:23.4]} 85. Kf3 {[%clk 0:00:52.5]} 85... Bd2 {[%clk 0:00:24.4]} 86.
Ng4 {[%clk 0:00:53.2]} 86... Ra8 {[%clk 0:00:22.5]} 87. Nf6 {[%clk 0:00:53.1]}
87... Ba5 {[%clk 0:00:16]} 88. Ng4 {[%clk 0:00:49.3]} 88... Rf8 {[%clk
0:00:16.4]} 89. Ke3 {[%clk 0:00:49.5]} 89... Bc3 {[%clk 0:00:16.2]} 90. Kd3
{[%clk 0:00:50.2]} 90... Ba5 {[%clk 0:00:17]} 91. Nh6 {[%clk 0:00:49.5]} 91...
Be1 {[%clk 0:00:17.2]} 92. Ra7 {[%clk 0:00:49.2]} 92... Bb4 {[%clk 0:00:17.8]}
93. Rc7 {[%clk 0:00:49.5]} 93... Ba5 {[%clk 0:00:18.8]} 94. Rb7 {[%clk
0:00:50.1]} 94... Be1 {[%clk 0:00:19.4]} 95. Ke3 {[%clk 0:00:50.8]} 95... Ba5
{[%clk 0:00:20.3]} 96. Ng4 {[%clk 0:00:51.4]} 96... Bd8 {[%clk 0:00:18.6]} 97.
Kd4 {[%clk 0:00:49.2]} 97... Rh8 {[%clk 0:00:16]} 98. Nh6 {[%clk 0:00:49.1]}
98... Rf8 {[%clk 0:00:17]} 99. Kc5 {[%clk 0:00:47.8]} 99... Ba5 {[%clk
0:00:14.6]} 100. Ra7 {[%clk 0:00:45.4]} 100... Bd2 {[%clk 0:00:14.2]} 101. Ra4
{[%clk 0:00:45.9]} 101... Be3+ {[%clk 0:00:12.5]} 102. Kd6 {[%clk 0:00:46.5]}
102... d4 {[%clk 0:00:13.9]} 103. Ng4 {[%clk 0:00:32.3]} 103... Bxf4 {[%clk
0:00:13.5]} 104. Rxd4 {[%clk 0:00:33.5]} 104... Bxg5 {[%clk 0:00:14.7]} 105. Kc5
{[%clk 0:00:31.1]} 105... Rc8+ {[%clk 0:00:13.1]} 106. Kb5 {[%clk 0:00:28.4]}
106... Rc1 {[%clk 0:00:10.1]} 107. Rc4 {[%clk 0:00:28.7]} 107... Re1 {[%clk
0:00:10]} 108. Kc5 {[%clk 0:00:29.2]} 108... Bh4 {[%clk 0:00:11.1]} 109. Kd6
{[%clk 0:00:27.7]} 109... Bg3 {[%clk 0:00:11.1]} 110. Ra4 {[%clk 0:00:22.4]}
110... g5 {[%clk 0:00:10.7]} 111. Ra3 {[%clk 0:00:19.1]} 111... Bf4 {[%clk
0:00:11.2]} 112. Rh3 {[%clk 0:00:19.1]} 112... Kg6 {[%clk 0:00:10.8]} 113. Ke7
{[%clk 0:00:16.1]} 113... Kf5 {[%clk 0:00:05.4]} 114. Nh6+ {[%clk 0:00:16.3]}
114... Kxe5 {[%clk 0:00:07]} 115. Nxf7+ {[%clk 0:00:16.9]} 115... Kf5 {[%clk
0:00:07.6]} 116. Nh6+ {[%clk 0:00:18]} 116... Kg6 {[%clk 0:00:08.3]} 117. Ng4
{[%clk 0:00:18.4]} 117... Kf5 {[%clk 0:00:09]} 118. Nh6+ {[%clk 0:00:18.6]}
118... Kg6 {[%clk 0:00:05.7]} 119. Ng4 {[%clk 0:00:19.2]} 119... Rg1 {[%clk
0:00:04.5]} 120. Rh6+ {[%clk 0:00:15.8]} 120... Kf5 {[%clk 0:00:05.7]} 121. Nf6
{[%clk 0:00:17.2]} 121... g4 {[%clk 0:00:06.3]} 122. Rh5+ {[%clk 0:00:18.1]}
122... Kg6 {[%clk 0:00:04.7]} 123. Rh8 {[%clk 0:00:18.7]} 123... Bg5 {[%clk
0:00:05.5]} 124. Rg8+ {[%clk 0:00:19.6]} 124... Kf5 {[%clk 0:00:07.1]} 125. Rf8
{[%clk 0:00:19.5]} 125... Ke5 {[%clk 0:00:06.7]} 126. Rf7 {[%clk 0:00:17.4]}
126... Rf1 {[%clk 0:00:07.4]} 0-1

[Event "*** Qualifier 1: Titled Tuesday 3|2 Blitz"]
[Site "Chess.com"]
[Date "2017.04.04"]
[Round "9"]
[White "ka1ser64"]
[Black "politeplayer"]
[Result "0-1"]
[WhiteElo "2304"]
[BlackElo "2121"]
[TimeControl "180+2"]
[EndTime "15:00:36 PDT"]
[Termination "politeplayer won by resignation"]

1. d4 {[%clk 0:03:02]} 1... Nf6 {[%clk 0:02:59.9]} 2. c4 {[%clk 0:03:03.1]} 2...
e6 {[%clk 0:02:57]} 3. Nc3 {[%clk 0:03:04.4]} 3... Bb4 {[%clk 0:02:56.5]} 4. e3
{[%clk 0:03:05.3]} 4... O-O {[%clk 0:02:55.7]} 5. Ne2 {[%clk 0:03:06.4]} 5... d5
{[%clk 0:02:50]} 6. a3 {[%clk 0:03:07.4]} 6... Bd6 {[%clk 0:02:48.9]} 7. Nf4
{[%clk 0:03:08.1]} 7... dxc4 {[%clk 0:02:34.7]} 8. Bxc4 {[%clk 0:03:08.6]} 8...
e5 {[%clk 0:02:35.7]} 9. Nfe2 {[%clk 0:03:06.4]} 9... Nc6 {[%clk 0:02:32.4]} 10.
d5 {[%clk 0:03:01.1]} 10... Ne7 {[%clk 0:02:32.1]} 11. e4 {[%clk 0:03:01.3]}
11... Ng6 {[%clk 0:02:24.9]} 12. O-O {[%clk 0:02:59.7]} 12... a6 {[%clk
0:02:25]} 13. Be3 {[%clk 0:02:55.7]} 13... Ng4 {[%clk 0:02:24.5]} 14. Bg5 {[%clk
0:02:54.8]} 14... Qxg5 {[%clk 0:02:23.7]} 0-1

[Event "*** Qualifier 1: Titled Tuesday 3|2 Blitz"]
[Site "Chess.com"]
[Date "2017.04.04"]
[Round "9"]
[White "peteseeger"]
[Black "ruvat"]
[Result "0-1"]
[WhiteElo "2099"]
[BlackElo "2223"]
[TimeControl "180+2"]
[EndTime "15:05:00 PDT"]
[Termination "ruvat won by resignation"]

1. e4 {[%clk 0:03:02]} 1... d6 {[%clk 0:03:00.2]} 2. d4 {[%clk 0:03:01.7]} 2...
Nf6 {[%clk 0:03:00.8]} 3. Nc3 {[%clk 0:03:02.4]} 3... g6 {[%clk 0:03:01.8]} 4.
f4 {[%clk 0:03:02.6]} 4... Bg7 {[%clk 0:03:02.7]} 5. Nf3 {[%clk 0:03:03.2]} 5...
O-O {[%clk 0:03:03.4]} 6. e5 {[%clk 0:03:03.8]} 6... dxe5 {[%clk 0:03:03.2]} 7.
fxe5 {[%clk 0:03:01.4]} 7... Nd5 {[%clk 0:03:03.6]} 8. Bc4 {[%clk 0:02:40.4]}
8... Be6 {[%clk 0:03:03.6]} 9. Nxd5 {[%clk 0:02:37.5]} 9... Bxd5 {[%clk
0:03:05.5]} 10. Bxd5 {[%clk 0:02:38.1]} 10... Qxd5 {[%clk 0:03:07.4]} 11. O-O
{[%clk 0:02:35.6]} 11... c5 {[%clk 0:03:01.1]} 12. dxc5 {[%clk 0:02:17.1]} 12...
Qxc5+ {[%clk 0:03:00]} 13. Kh1 {[%clk 0:02:17.8]} 13... Nc6 {[%clk 0:02:53.2]}
14. e6 {[%clk 0:01:43.2]} 14... fxe6 {[%clk 0:02:52]} 15. Qe2 {[%clk 0:01:43]}
15... e5 {[%clk 0:02:47.2]} 16. c3 {[%clk 0:01:42.6]} 16... b5 {[%clk
0:02:26.9]} 17. Be3 {[%clk 0:01:43]} 17... Qc4 {[%clk 0:02:27.7]} 18. Qe1 {[%clk
0:01:30.5]} 18... e4 {[%clk 0:02:06.9]} 19. Ng5 {[%clk 0:01:30.6]} 19... h6
{[%clk 0:02:04.7]} 20. Nh3 {[%clk 0:01:18.3]} 20... Rxf1+ {[%clk 0:01:51.3]} 21.
Qxf1 {[%clk 0:01:18]} 21... Rf8 {[%clk 0:01:51.8]} 22. Nf2 {[%clk 0:01:14.2]}
22... Ne5 {[%clk 0:01:32.9]} 23. Bd4 {[%clk 0:00:46.7]} 23... Nd3 {[%clk
0:01:01.6]} 0-1